Cogmind - Beta 16 @@@ ROGUE MODE // 2025.11.02 @ 12:50:59 Player: Not_Jesus8 Result: Self-destructed Performance ------------- Evolutions (1) 500 Regions Visited (2) 400 Robots Destroyed (14) 70 Value Destroyed (185) 185 Prototype IDs (0) 0 Alien Tech Used (0) 0 Bonus (0) 0 TOTAL SCORE: 1155 Bonus ------- None Cogmind --------- Core Integrity 400/400 Matter 116/300 Energy 125/125 System Corruption 0% Temperature Cool (6) Movement Rolling (95) Ox1 Location -9/Materials Parts ------- > --- POWER (1) -------- Light Ion Engine > --- PROPULSION (4) --- Light Treads Wheel Wheel > --- UTILITY (2) ------ Large Storage Unit Seismic Detector > --- WEAPON (2) ------- Assault Rifle > --- INVENTORY (15) --- Light Treads Wheel Improved Terrain Scanner Spread Laser Spread Laser Spread Laser Spread Laser Peak State ------------ > --- POWER ------------ Light Ion Engine > --- PROPULSION ------- Light Treads Light Treads Wheel Wheel > --- UTILITY ---------- Large Storage Unit Seismic Detector > --- WEAPON ----------- Assault Rifle Assault Rifle > --- INVENTORY -------- Light Treads Wheel Improved Terrain Scanner Spread Laser Spread Laser Spread Laser Spread Laser [Rating: 10] Favorites ----------- Power Light Ion Engine Engine Light Ion Engine Propulsion Light Treads Treads Light Treads Wheel Wheel Utility Seismic Detector Device Seismic Detector Storage Small Storage Unit Weapon Assault Rifle Ballistic Gun Assault Rifle Build | -11 -10 -9 ------- Run | Yrd Mat Mat Slots Evolved 2 | . . 2 Power . | . . . Propulsion 2 | . . 2 Utility . | . . . Weapon . | . . . Parts Attached 11 | 7 1 3 Power 1 | 1 . . Engine 1 | 1 . . Core . | . . . Reactor . | . . . Propulsion 5 | 2 . 3 Treads 3 | 2 . 1 Leg . | . . . Wheel 2 | . . 2 Hover . | . . . Flight . | . . . Utility 3 | 2 1 . Device 1 | 1 . . Storage 2 | 1 1 . Processor . | . . . Hackware . | . . . Protection . | . . . Artifact . | . . . Weapon 2 | 2 . . Energy Gun . | . . . Energy Cannon . | . . . Ballistic Gun 2 | 2 . . Ballistic Cannon . | . . . Launcher . | . . . Special Weapon . | . . . Impact Weapon . | . . . Slashing Weapon . | . . . Piercing Weapon . | . . . Special Melee Weapon . | . . . Unidentified Prototypes . | . . . Parts Lost . | . . . Power . | . . . Propulsion . | . . . Utility . | . . . Weapon . | . . . Highest Loss Streak . | . . . To Critical Strikes . | . . . Average Backups 5 | . 5 7 Power . | . . . Propulsion 2 | . 2 2 Utility . | . 1 1 Weapon 2 | . 2 4 Tool/Special . | . . . Unused Backups 6 | . . 6 Power . | . . . Propulsion 1 | . . 1 Utility 1 | . . 1 Weapon 4 | . . 4 Tool/Special . | . . . Average Slot Usage (%) 98 | . 100 95 Engine 12 | . 14 11 Treads 26 | . 28 23 Wheel 5 | . . 16 Device 12 | . 14 11 Storage 12 | . 14 11 Ballistic Gun 25 | . 28 21 Peak Build Rating 10 | 7 8 10 Average Rating 7 | 5 7 9 On Entrance 5 | . 7 8 Avg Prop Armor Cover (%) 17 | . . 17 Naked Turns . | . . . Heaviest Build 28 | 13 28 28 Greatest Support 60 | 40 40 60 Greatest Overweight (x) 1 | . . 1 Average Overweight (x) . | . . . Largest Inventory Capacity 15 | 8 15 15 Average Capacity 10 | 7 9 15 Most Carried 8 | 3 8 8 Average Carried 5 | . 5 7 Final Capacity 15 | 8 15 15 Final Carried 8 | 3 8 7 Class Distribution -------------------- 100% | Mutant Dominant Class ---------------- Mutant | -10/Materials Mutant | -9/Materials Resources | -11 -10 -9 ----------- Run | Yrd Mat Mat Matter Collected 327 | 145 157 25 Remotely . | . . . Salvage Created 487 | 183 279 25 Parts 41 | 18 21 2 Haulers Intercepted 2 | . 2 . Recyclers Shooed 1 | 1 . . Parts Field Recycled . | . . . Retrieved Matter . | . . . Parts Self-Destructed . | . . . Prevented . | . . . Parts Restored . | . . . Kills | -11 -10 -9 ------- Run | Yrd Mat Mat Combat Hostiles Destroyed 4 | . 4 . Guns 4 | . 4 . Classes Destroyed 6 | 2 4 . Worker 1 | . 1 . Builder 2 | . 1 1 Tunneler 4 | 4 . . Hauler 2 | . 2 . Recycler 1 | 1 . . Grunt 4 | . 4 . Best Kill Streak 5 | 5 4 1 Combat Bots Only 2 | . 2 . Max Kills in Single Turn 2 | 2 1 1 Gunslinging . | . . . Exploded . | . . . Melee . | . . . Uniques/NPCs Destroyed . | . . . Combat | -11 -10 -9 -------- Run | Yrd Mat Mat Hostile Shots Fired 31 | . 19 12 Missed 8 | . 5 3 Hits 23 | . 14 9 Melee 4 | . . 4 Projectile 19 | . 14 5 Critical Strikes 2 | . . 2 Damage Taken 323 | . 149 174 Core 63 | . 63 . Absorbed by Shields . | . . . Core Remaining (%) 87 | 100 74 . Volleys Fired 34 | 5 19 10 Largest 2 | 2 2 2 Hottest 40 | 40 40 40 Shots Fired 67 | 10 38 19 Gun 67 | 10 38 19 Cannon . | . . . Launcher . | . . . Special . | . . . Kinetic 67 | 10 38 19 Thermal . | . . . Explosive . | . . . Electromagnetic . | . . . Robot Hit Streak 10 | 5 6 10 Robot Miss Streak 4 | 1 4 3 Penetration Max . | . . . Secondary Targets 1 | . 1 . Max Gunslinging Chain 1 | . 1 . Shots Hit Robots 40 | 7 21 12 Core Hits 20 | 6 12 2 Critical Kills . | . . . Critical Parts Destroyed . | . . . Critical Strikes . | . . . Melee Attacks . | . . . Impact . | . . . Slashing . | . . . Piercing . | . . . Sneak Attacks . | . . . Combat Hostiles . | . . . Follow-up Attacks . | . . . Damage Inflicted 562 | 106 305 151 Guns 557 | 106 300 151 Cannons . | . . . Explosions . | . . . Melee . | . . . Ramming 5 | . 5 . Kinetic 557 | 106 300 151 Thermal . | . . . Explosive . | . . . Electromagnetic . | . . . Impact . | . . . Slashing . | . . . Piercing . | . . . Highest Corruption . | . . . Average Corruption . | . . . Corruption Purged . | . . . Corruption Blocked . | . . . Overload Shots . | . . . Overflow Damage . | . . . Projectiles . | . . . Explosions . | . . . Melee . | . . . Knockbacks . | . . . Impact . | . . . Kinetic . | . . . Secondary . | . . . Self-Inflicted Damage . | . . . Shots . | . . . Rammed . | . . . Targets Rammed 1 | . 1 . Kicked . | . . . Crushed 1 | . 1 . Highest Temperature 3 | . . 3 Average Temperature 3 | . . 3 Received Heat Transfer 114 | . 84 30 Siege Activations . | . . . Martial Activations . | . . . Shielding Activations . | . . . Robots Disrupted . | . . . Combat Hostiles . | . . . Robots Corrupted . | . . . Combat Hostiles . | . . . Parts Fried . | . . . Impact Corruptions . | . . . Robots Melted . | . . . Combat Hostiles . | . . . Parts Melted . | . . . Heat Transferred . | . . . Parts Sabotaged . | . . . Parts Stolen . | . . . Parts Stripped . | . . . Power Chain Reactions . | . . . Alert | -11 -10 -9 ------- Run | Yrd Mat Mat Maximum Alert Level . | . . . Low Security (%) 100 | 100 100 100 Level 1 . | . . . Level 2 . | . . . Level 3 . | . . . Level 4 . | . . . Level 5 . | . . . High Security . | . . . Max Security . | . . . Peak Influence 60 | 15 60 16 Initial 16 | . 3 16 Average 14 | 3 22 3 Influence Increases 205 | 25 162 18 Destroy 0b10 Robot/C 80 | . 80 . Destroy 0b10 Robot/NC 50 | 25 20 5 Destroy Leader 24 | . 24 . Successful Hack 21 | . 8 13 Select Force Hacks 30 | . 30 . Influence Decreases 205 | 20 127 58 Entered New Map 26 | . 2 24 Time Decay 179 | 20 125 34 Squads Dispatched 3 | . 2 1 Investigation 1 | . 1 . Extermination . | . . . Reinforcement 2 | . 1 1 Assault . | . . . Garrison . | . . . Intercept . | . . . Searches Triggered . | . . . Construction Impeded . | . . . Haulers Reinforced . | . . . Active Scanning Responses . | . . . Cargo Convoy Interrupts . | . . . Stealth | -11 -10 -9 --------- Run | Yrd Mat Mat Distress Signals 1 | . . 1 Communications Jammed . | . . . Distress Signals . | . . . Times Spotted 10 | . 6 4 Peak Tracking Total 4 | . 2 4 Tactical Retreats . | . . . Traps | -11 -10 -9 ------- Run | Yrd Mat Mat Traps Triggered . | . . . Indirectly . | . . . Trap Hack Attempts . | . . . Triggered . | . . . Disarmed . | . . . Reprogrammed . | . . . Reused . | . . . Traps Extracted . | . . . Installed . | . . . Triggered . | . . . Machines | -11 -10 -9 ---------- Run | Yrd Mat Mat Machines Disabled . | . . . Max in Single Turn . | . . . Machines Repaired . | . . . Machines Dismantled . | . . . Machines Sabotaged . | . . . Overloaded Fab Kills . | . . . Hacking | -11 -10 -9 --------- Run | Yrd Mat Mat Machines Accessed 5 | . 3 2 Terminals 4 | . 2 2 Fabricators . | . . . Repair Stations . | . . . Recycling Units 1 | . 1 . Scanalyzers . | . . . Garrison Access . | . . . Total Hacks 17 | . 9 8 Successful 10 | . 5 5 Failed 7 | . 4 3 Catastrophic . | . . . Database Lockouts . | . . . Manual 17 | . 9 8 Terminals 16 | . 8 8 Fabricators . | . . . Repair Stations . | . . . Recycling Units 1 | . 1 . Scanalyzers . | . . . Garrison Access . | . . . Terminal Hacks 2 | . 1 1 Terminal Index 2 | . 1 1 Fabricator Hacks . | . . . Repair Station Hacks . | . . . Recycling Unit Hacks . | . . . Scanalyzer . | . . . Garrison Access Hacks . | . . . Unauthorized Hacks 8 | . 4 4 Terminals 7 | . 3 4 Assimilate 2 | . 1 1 Botnet 4 | . 2 2 Operators 1 | . . 1 Fabricators . | . . . Repair Stations . | . . . Recycling Units 1 | . 1 . Tunnel 1 | . 1 . Scanalyzers . | . . . Garrison Access . | . . . Data Cores Recovered . | . . . Used . | . . . Hacking Detections 4 | . 2 2 Full Trace Events . | . . . Feedback Events . | . . . Feedback Blocked . | . . . Robot Schematics Acquired . | . . . Robots Built . | . . . Authchips . | . . . Time . | . . . Total Robot Build Rating . | . . . Part Schematics Acquired . | . . . Parts Built . | . . . Authchips . | . . . Time . | . . . Total Part Build Rating . | . . . Part Studies Acquired . | . . . Parts Repaired . | . . . Time . | . . . Parts Recycled . | . . . Recycled Matter . | . . . Retrieved Matter . | . . . Retrieved Components . | . . . Parts Scanalyzed . | . . . Part Schematics Acquired . | . . . Parts Damaged . | . . . Bothacking | -11 -10 -9 ------------ Run | Yrd Mat Mat Used RIF Installer . | . . . Robots Hacked . | . . . Non-combat . | . . . Combat . | . . . Robot Hacks Applied . | . . . Relay Couplers Released . | . . . Fabnet Peak Effective % . | . . . Robots Rewired . | . . . Allies Hacked . | . . . Hacks Repelled . | . . . Allies | -11 -10 -9 -------- Run | Yrd Mat Mat Total Allies 1 | . 1 . Largest Group 1 | . 1 1 Highest-Rated Group 10 | . 10 10 Highest-Rated Ally 10 | . 10 10 Total Orders . | . . . Ally Attacks . | . . . Total Damage . | . . . Kills . | . . . Allies Corrupted . | . . . Allies Melted . | . . . Intel | -11 -10 -9 ------- Run | Yrd Mat Mat Active Infowar (turns) 568 | 18 359 191 Seismic 568 | 18 359 191 Robot Analysis Total . | . . . Derelict Logs Recovered . | . . . Drone Launches . | . . . Drone Recoveries . | . . . Exploration | -11 -10 -9 ------------- Run | Yrd Mat Mat Turns Passed 639 | 89 359 191 Spaces Moved 360 | 41 181 138 Core 4 | 4 . . Treads 244 | 37 181 26 Legs . | . . . Wheels 112 | . . 112 Hover . | . . . Flight . | . . . Fastest Speed 50 | 50 160 95 Average Speed 138 | 149 160 107 Slowest Speed 160 | 160 160 160 Overloaded Moves . | . . . Propulsion Burnouts . | . . . Robots Hopped . | . . . Potential Cave-ins . | . . . Cave-ins Triggered . | . . . Exploration Rate (%) 15 | 4 29 14 Regions Visited 2 Branch Regions . Pre-discovered Areas 1 | . 1 . Known Exits Taken . | . . . Unknown Exits Taken 2 | 1 1 . Scrap Searched . | . . . Spaces Dug . | . . . Terrain Destroyed . | . . . Melee . | . . . Projectile . | . . . AOE . | . . . Terrain Rammed . | . . . Walls Destroyed . | . . . Machines Disabled . | . . . Actions | -11 -10 -9 --------- Run | Yrd Mat Mat Total 429 | 55 212 162 Wait 15 | . 5 10 Move 358 | 40 180 138 Hop . | . . . Pick Up 8 | 3 5 . Fast Attach 8 | 7 . 1 Attach 2 | . . 2 Detach 1 | . . 1 Swap 1 | . 1 . Drop 1 | . 1 . Fire 34 | 5 19 10 Melee . | . . . Ram . | . . . Kick . | . . . Crush 1 | . 1 . Escape Stasis . | . . . Rewire . | . . . Trap . | . . . Miscellaneous . | . . . Route ------- -11/Scrapyard -10/Materials -9/Materials History --------- Turn | Location | Event 7 | -11/Scrapyard | Discovered new exit (range 15) 90 | -11/Scrapyard | Entered Materials 302 | -10/Materials | Build established: Mutant 379 | -10/Materials | Discovered new exit (range 15) 449 | -10/Materials | Entered another Materials area 449 | -9/Materials | Accompanied by 1 ally 449 | -9/Materials | Evolved 2 slots: Propulsion x2 640 | -9/Materials | Self-destructed Last Messages --------------- Trojan loaded successfully. Testing... Terminal linked with 1 system. Awaiting botnet instructions. 00560_ Connecting with Terminal... >>Trojan(Assimilate) Trojan loaded successfully. Testing... System interface override in place. 00606_ K-01 Serf collects debris. 00609_ O-16 Technician: "IFF HANDSHAKE FAILED. SECURING TERMINAL." 00609_ K-01 Serf collects debris. 00610_ O-16 Technician sends out distress signal. 00614_ K-01 Serf collects debris. 00618_ ALERT: Hostiles spotted, dispatching reinforcements to Terminal M010. 00631_ Lgt. Treads severed. 00636_ Assault Rifle severed. Map ----- +----------------------------------------------------+ | ???????????????????????????# """ # # # | | ???????????????????????????# """ # # # | | ???????????????????????????# """ + # # | | ???????????????????????????# # # # | | ???????????????????????????# # + # | | ???????????????????????????# ?# # # | | ???????????????????????????######?# # # | | ??????????????????????????????##### # # | | ??????????????????????????????# # # | | ??????????????????????????????# ####### # | | ??????????????????????????????# #?????######### | | ??????????????????????????????# #?????????????? | | ??????????????????????????????# #?????????????? | | ???????????????????????????####+######????????? | | ???????????????????????????# #????????? | | ???????????????????????????# ########?? | | ???????????????????????????# # #?? | | ???????????????????????????# # """ #?? | | ????????????????#??????????# """ """ # "T" #?? | | ????????????????# ?????????# """ """ # #?? | | ????????????????# ????????## """ """ # #?? | | ??????????###+##? ?????? ## # #?? | | ??????????# =##+#####+###+#####+######+###?? | | ??????????# r #???? | | ??????????# " gg ##### #???? | | ??????????# l@ o #???# #???? | | ??????????# ###+##############+##???# #???? | | ????????????????? ?????????? ???# #???? | | ????????????????# "?????? ?# #???? | | ????????????????# Y" ???# ## #???? | | ????????????????# "" #??# ## #???? | | ????????????????# """ #??# """ ## #???? | | ????????????????# """ #??# """ " " ## #???? | | ????????????????+ """ #??# """ "R" ## #???? | | ????????????????# #??# """ ## #???? | | ????????????????###########??#???######## #???? | | ????????????????????????????????????????# #???? | | ????????????????????????????????????????# #???? | | ???????o????????????????????????????????# #???? | | ????????????????????????????????????????# #???? | | ????????????????????????????????????????# #???? | | ????????????????????????????????????????# #???? | | ????????????????????????????????????????# #???? | | ????????????????????????????????????????# #???? | | ????????????????????????????????????????# #???? | | ????????????????????????????????????????# #???? | | ????????????????????????????????????????# #???? | | ???????????????????????????????????????## ##??? | | ???????????????????????????????????????# #??? | | ???????????????????????????????????????+ T #??? | +----------------------------------------------------+ Best States ------------- Heat Dissipation 28 Energy Generation 10 Energy Capacity 125 Matter Stores 178 Matter Capacity 300 Sight Range 16 Terrain Scan Density 10 Evasion (%) 41 Recoil Reduction 3 Item Schematics ----------------- None Robot Schematics ------------------ None Fabricated ------------ Nothing Repaired ---------- Nothing Studied --------- None Alien Tech Used ----------------- None Achievements -------------- None Challenges ------------ None Game ------ Seed JammingDroneSlayer Manual? 0 Play Time 00:05:28 Cumulative 26.1 hours Start 2025.11.02 @ 12:46:56 End 2025.11.02 @ 12:50:59 Sessions 1 Manual Loads 0 Difficulty Rogue Special Mode None Game No. 47 Rogue 47 Adventurer 0 Explorer 0 Win Type - Total 2 Types 2/0/0/0/0/0/0/0/0/0 Lore% 37 Gallery% 29 Achievement% 28 Wizard Run 0 Options --------- Layout 1 ASCII 0 Keyboard 1 Movement Arrows Keybinds 0 Fullscreen 1 Font 16/SmallcapsGlow Map View 50x54 Zoom Use 0% Tactical HUD 1 Map Filters NONE Filters NONE Steam 1 RUN: 5752dd45-7677-4489-9cde-e4d3e6f931a0